bitfinex/quotes_ETHUSD_20240630
["timestamp","ask_amount","ask_price","bid_price","bid_amount"]
[1719715509295,2.2805,3369.0,3368.4,0.865]
[1719715509666,0.06138065,3368.9,3368.4,0.865]
[1719715510259,2.2805,3368.8,3368.4,0.865]
[1719715510686,0.0613206,3368.7,3368.4,0.865]
[1719715511189,0.06129988,3368.6,3367.5,2.3492]
[1719715511467,2.2805,3368.5,3367.9,0.865]
[1719715511897,0.06129697,3368.4,3367.9,0.865]
[1719715512461,0.06129697,3368.4,3367.8,1.18944]
[1719715512662,0.06129697,3368.4,3368.0,0.865]
[1719715512863,0.06129697,3368.4,3368.2,0.865]
[1719715513769,0.06129697,3368.4,3367.8,1.18944]
[1719715513972,0.06129697,3368.4,3368.1,0.865]
[1719715514281,0.06129697,3368.4,3368.3,0.865]
[1719715514618,6.89952784,3368.9,3368.3,4.8567246]
[1719715514765,1.02436045,3372.0,3368.8,0.865]
[1719715514766,6.89952784,3369.2,3368.8,0.865]
[1719715514968,39.07952784,3369.6,3369.1,0.865]
[1719715515205,39.07952784,3369.6,3369.5,0.865]
[1719715515371,2.2805,3370.0,3369.5,0.865]
[1719715516760,2.2805,3370.0,3369.3,0.865]
[1719715516960,2.2805,3370.0,3368.9,3.0]
[1719715517240,0.91800278,3369.9,3369.1,0.865]
[1719715519000,2.2805,3369.8,3368.5,3.0]
[1719715519200,9.49987812,3369.8,3368.9,0.865]
[1719715519975,9.49987812,3369.8,3369.1,0.865]
[1719715520161,9.18002784,3369.8,3369.1,0.865]
[1719715520566,0.0594217,3369.7,3369.1,0.865]
[1719715521656,0.0594217,3369.7,3368.3,3.38235783]
[1719715521860,0.0594217,3369.7,3368.8,0.865]
[1719715522057,1.06986665,3369.7,3368.8,0.865]
[1719715522297,1.06986665,3369.7,3369.0,0.865]
[1719715522502,1.06986665,3369.7,3368.4,0.55]
[1719715522503,0.0594217,3369.7,3369.2,0.865]
[1719715525206,0.0594217,3369.7,3369.4,0.865]
[1719715525412,9.18002784,3369.8,3369.4,0.865]
[1719715525572,0.05939094,3369.6,3369.4,0.865]
[1719715525764,9.18002784,3369.8,3369.4,0.865]
[1719715526028,0.05941164,3369.7,3369.4,0.865]
[1719715526506,9.18002784,3369.8,3369.4,0.865]
[1719715526863,0.05941164,3369.7,3369.4,0.865]
[1719715527303,2.2805,3369.8,3369.4,0.865]
[1719715527475,0.05939094,3369.6,3369.4,0.865]
[1719715527677,2.2805,3369.8,3369.0,3.0]
[1719715527678,2.2805,3369.8,3369.3,0.865]
[1719715527860,0.05937023,3369.5,3368.6,3.0]
[1719715528069,2.2805,3369.8,3369.0,0.865]
[1719715528275,0.05934958,3369.4,3369.0,0.865]
[1719715528564,3.1455,3369.8,3368.6,3.0]
[1719715528792,2.2989,3369.5,3368.7,0.865]
[1719715529115,0.05940971,3369.4,3368.7,0.865]
[1719715530396,2.2989,3369.3,3368.2,3.0]
[1719715530599,0.29515486,3369.2,3368.3,0.865]
[1719715530794,0.29515486,3369.2,3368.4,0.865]
[1719715530996,2.2989,3369.1,3368.2,0.865]
[1719715531309,0.05924005,3369.0,3367.9,0.354944]
[1719715532873,0.05924005,3369.0,3368.0,0.55]
[1719715533217,0.05924005,3369.0,3368.0,2.627]
[1719715533419,0.05924005,3369.0,3368.1,3.7171384]
[1719715533634,0.05924005,3369.0,3368.2,0.55]
[1719715533930,2.2989,3369.4,3368.2,0.55]
[1719715534084,0.05919875,3368.9,3368.2,0.55]
[1719715534287,2.2989,3369.4,3368.4,2.077]
[1719715534527,2.2989,3369.4,3368.5,0.8127]
[1719715534731,0.0592816,3369.3,3368.5,3.8127]
[1719715536425,0.0592816,3369.3,3368.6,0.05936482]
[1719715536740,0.0592816,3369.3,3368.7,0.55]
[1719715536942,6.89952784,3369.6,3368.7,0.55]
[1719715537082,0.05941414,3369.2,3368.7,0.55]
[1719715537290,6.89952784,3369.6,3368.7,0.55]
[1719715537527,0.05939486,3369.1,3368.7,0.55]
[1719715537731,6.89952784,3369.6,3368.8,2.82871139]
[1719715538035,6.89952784,3369.6,3368.9,3.55]
[1719715538333,0.05948197,3369.5,3369.2,2.077]
[1719715538641,0.05948197,3369.5,3369.3,1.05898702]
[1719715538928,0.05948197,3369.5,3369.3,4.05898702]
[1719715539484,0.05948197,3369.5,3369.3,3.99963518]
[1719715540803,0.05948197,3369.5,3369.4,1.188862]
[1719715541169,0.05948197,3369.5,3369.4,1.738862]
[1719715541445,0.05948197,3369.5,3369.4,5.46541172]
[1719715542369,6.89952784,3370.1,3369.4,5.46541172]
[1719715542652,0.05969146,3370.0,3369.5,0.55]
[1719715543109,2.2699,3369.9,3369.5,0.55]
[1719715543499,0.0595457,3369.8,3369.5,0.55]
[1719715543727,0.0595457,3369.8,3369.5,0.93017191]
[1719715544018,0.0595457,3369.8,3369.5,3.93017191]
[1719715544202,0.0595457,3369.8,3369.5,0.93017191]
[1719715545265,6.89952784,3370.1,3369.5,0.93017191]
[1719715545410,0.05954072,3369.7,3369.6,0.55686691]
[1719715545616,6.89952784,3370.1,3369.6,1.10686691]
[1719715545817,0.05960285,3370.0,3369.6,1.10686691]
[1719715549066,0.05960285,3370.0,3369.7,0.55]
[1719715549251,0.05960285,3370.0,3369.8,0.17162165]
[1719715551158,9.16942784,3370.5,3369.8,0.17162165]
[1719715551513,0.05976154,3370.4,3369.8,0.17162165]
[1719715555741,0.05976154,3370.4,3369.8,2.30796753]
[1719715555940,0.05976154,3370.4,3369.9,0.55]
[1719715556173,0.05976154,3370.4,3370.0,0.34079675]
[1719715556696,0.05976154,3370.4,3370.1,0.6093411]
[1719715557045,0.05976154,3370.4,3370.2,2.077]
[1719715557241,0.05976154,3370.4,3370.3,0.6093347]
[1719715557571,0.05787153,3370.4,3370.3,3.6093347]
[1719715557867,19.19952784,3370.9,3370.3,4.51204784]
[1719715558064,0.05787153,3370.4,3370.3,4.51204784]
[1719715558268,19.19952784,3370.9,3370.3,4.51204784]
[1719715558600,19.19952784,3370.9,3370.3,4.45271314]
[1719715558746,0.05803014,3370.8,3370.4,0.65297131]
[1719715560955,0.05803014,3370.8,3370.3,3.0]
[1719715561150,0.05803014,3370.8,3370.0,0.34079675]
[1719715562295,0.05803014,3370.8,3370.1,2.68633803]
[1719715562449,0.05803014,3370.8,3370.2,5.3739]
[1719715562645,0.05803014,3370.8,3370.3,0.60933124]
[1719715562870,0.05803014,3370.8,3370.4,0.80602312]
[1719715563053,0.05803014,3370.8,3370.5,0.60933125]
[1719715563785,6.89952784,3371.3,3370.5,0.60933125]
[1719715564196,0.05817159,3371.2,3370.5,0.60933125]
[1719715566670,0.05817159,3371.2,3370.5,0.55]
[1719715567008,0.05817159,3371.2,3370.5,1.22299231]
[1719715568500,0.05817159,3371.2,3370.6,0.05933103]
[1719715568799,0.05817159,3371.2,3370.7,0.55]
[1719715569155,0.05817159,3371.2,3370.8,0.0593268]
[1719715569354,6.89952784,3371.3,3370.9,0.55]
[1719715569590,0.05826742,3371.2,3370.9,0.41]
[1719715569797,0.05826742,3371.2,3371.0,0.55]
[1719715570091,6.89952784,3371.3,3371.0,0.55]
[1719715570092,0.05824673,3371.1,3371.0,0.55]
[1719715570454,6.89952784,3371.3,3371.0,0.55]
[1719715570977,0.05826742,3371.2,3371.0,0.55]
[1719715571150,6.89952784,3371.3,3371.0,0.55]
[1719715571349,0.05621742,3371.2,3371.1,0.60963256]
[1719715571553,2.428,3371.7,3371.1,1.15963256]
[1719715571807,0.0562375,3371.6,3371.2,0.96966326]
[1719715572591,0.0562375,3371.6,3371.2,0.55]
[1719715572769,0.0562375,3371.6,3371.1,0.55]
[1719715573470,0.0562375,3371.6,3371.0,3.0]
[1719715573787,0.0562375,3371.6,3370.9,2.487]
[1719715573991,0.0562375,3371.6,3371.0,0.55]
[1719715574160,0.0562375,3371.6,3371.0,3.55]
[1719715576008,2.428,3371.5,3371.0,3.0]
[1719715576217,0.05630456,3371.4,3370.2,2.077]
[1719715576515,6.9558324,3371.4,3370.3,0.99509]
[1719715576862,6.9558324,3371.4,3370.3,3.99509]
[1719715577810,6.9558324,3371.4,3370.4,2.3739]
[1719715578099,6.9558324,3371.4,3370.5,0.55]
[1719715578317,6.9558324,3371.4,3370.6,0.636899]
[1719715578478,6.9558324,3371.4,3370.7,0.55]
[1719715579403,6.9558324,3371.4,3370.7,3.55]
[1719715581676,6.9558324,3371.4,3370.7,4.738427]
[1719715583180,6.9558324,3371.4,3370.7,3.55]
[1719715583617,6.9558324,3371.4,3370.7,4.738426]
[1719715584194,6.9558324,3371.4,3370.7,5.4836585]
[1719715590443,6.9558324,3371.4,3370.7,7.5606585]
[1719715592648,6.9558324,3371.4,3370.7,9.9373585]
[1719715600723,6.9558324,3371.4,3370.7,7.5606585]
[1719715601219,6.9558324,3371.4,3370.7,5.4836585]
[1719715601441,6.9558324,3371.4,3371.3,0.864]
[1719715601643,0.05630456,3371.4,3371.3,0.864]
[1719715601859,2.2624,3371.3,3370.8,3.0]
[1719715602183,0.05619815,3371.2,3371.1,0.864]
[1719715602540,2.2624,3371.3,3371.1,0.864]
[1719715602983,0.05619815,3371.2,3371.1,0.864]
[1719715603286,2.2624,3371.3,3371.1,0.864]
[1719715603788,0.05618672,3371.2,3371.1,0.864]
[1719715603946,2.2624,3371.3,3371.1,0.864]
[1719715604290,0.05618672,3371.2,3371.1,0.864]
[1719715604790,2.2624,3371.3,3371.1,0.864]
[1719715605139,0.05618672,3371.2,3371.1,0.864]
[1719715605559,2.2624,3371.3,3371.1,0.864]
[1719715605965,0.05618672,3371.2,3371.1,0.864]
[1719715606166,2.2624,3371.3,3371.1,0.864]
[1719715606573,0.05618672,3371.2,3371.1,0.864]
[1719715606972,2.2624,3371.6,3371.1,1.414]
[1719715607142,2.2624,3371.6,3371.5,0.864]
[1719715609157,2.2624,3371.6,3371.4,0.864]
[1719715610197,2.48864,3371.6,3371.4,0.864]
[1719715610502,0.05626165,3371.5,3371.4,0.864]
[1719715611776,0.05626165,3371.5,3371.2,0.864]
[1719715613175,2.2624,3371.4,3370.7,1.188426]
[1719715613372,0.05623027,3371.3,3371.1,0.864]
[1719715629552,0.05623027,3371.3,3370.5,1.188424]
[1719715629709,0.05623027,3371.3,3370.8,0.864]
[1719715630231,0.05623027,3371.3,3371.0,0.864]
[1719715632050,0.05623027,3371.3,3371.2,0.864]
[1719715632551,0.05623027,3371.3,3371.0,0.864]
[1719715633119,0.05623027,3371.3,3370.6,4.31874454]
[1719715633334,0.05623027,3371.3,3370.9,0.864]
[1719715637555,0.05623027,3371.3,3371.1,0.864]
[1719715639523,0.05623027,3371.3,3370.9,0.864]
[1719715640820,0.05623027,3371.3,3371.1,0.864]
[1719715644829,6.89952784,3371.5,3371.1,0.864]
[1719715645064,0.05620741,3371.2,3371.1,0.864]
[1719715645224,6.89952784,3371.5,3371.1,0.864]
[1719715645744,0.05624878,3371.4,3371.1,0.864]
[1719715647173,0.05624878,3371.4,3371.1,1.49567]
[1719715647636,0.05624878,3371.4,3371.1,0.864]
[1719715649569,2.4887,3371.3,3370.8,3.0]
[1719715649781,2.4887,3371.3,3370.9,0.864]
[1719715649977,0.05626891,3371.2,3370.9,0.864]
[1719715650331,2.4887,3371.1,3370.6,3.0]
[1719715650536,2.4887,3371.1,3369.9,0.30211442]
[1719715650537,2.54494966,3371.1,3370.5,2.052424]
[1719715651035,2.54494966,3371.1,3370.5,0.864]
[1719715653681,2.54494966,3371.1,3369.9,3.0]
[1719715653883,2.4887,3370.9,3370.3,0.864]
[1719715654089,0.05604315,3370.8,3370.3,0.864]
[1719715654787,0.05604315,3370.8,3370.5,0.864]
[1719715655139,0.05604315,3370.8,3370.3,3.0]
[1719715655348,0.05604315,3370.8,3370.5,0.864]
[1719715658861,0.05604315,3370.8,3370.7,0.864]
[1719715661946,0.05604315,3370.8,3370.7,1.414]
[1719715662150,9.27032784,3371.4,3370.7,1.414]
[1719715662386,9.27032784,3371.4,3371.0,0.864]
[1719715663964,2.3708,3371.7,3371.2,0.864]
[1719715666480,6.89952784,3371.8,3371.6,0.864]
[1719715667193,2.3708,3372.0,3371.6,0.864]
[1719715670618,0.05633076,3371.9,3371.6,0.864]
[1719715675898,0.05633076,3371.9,3371.4,3.0]
[1719715676239,0.05633076,3371.9,3371.5,1.414]
[1719715682528,0.05633076,3371.9,3371.4,3.0]
[1719715682726,0.05633076,3371.9,3371.1,0.864]
[1719715682929,0.05633076,3371.9,3371.3,0.864]
[1719715683137,0.29904384,3371.9,3371.3,0.864]
[1719715683853,0.29904384,3371.9,3371.0,1.188291]
[1719715684154,0.29904384,3371.9,3371.2,0.864]
[1719715688861,0.29904384,3371.9,3371.4,0.864]
[1719715689158,0.05633076,3371.9,3371.4,0.864]
[1719715701501,0.05633076,3371.9,3371.3,3.0]
[1719715701502,0.05633076,3371.9,3371.6,0.864]
[1719715701805,6.89952784,3372.3,3371.6,0.864]
[1719715701955,0.05638021,3371.8,3371.6,0.864]
[1719715702303,6.89952784,3372.3,3371.6,1.3054]
[1719715702454,0.05635953,3371.7,3371.6,1.3054]
[1719715702655,6.89952784,3372.3,3371.6,1.3054]
[1719715702926,0.05635953,3371.7,3371.6,0.864]
[1719715703059,6.89952784,3372.3,3371.6,0.864]
[1719715703253,0.05635953,3371.7,3371.6,0.864]
[1719715703457,6.89952784,3372.3,3371.6,0.864]
[1719715703672,2.3983,3371.6,3371.3,3.0]
[1719715703889,2.3983,3371.6,3371.3,0.864]
[1719715704057,0.05631817,3371.5,3371.3,0.864]
[1719715706750,2.3983,3371.8,3371.3,0.864]
[1719715706964,0.05635953,3371.7,3371.3,0.864]
[1719715707139,2.3983,3371.8,3371.3,1.6052191]
[1719715707344,0.05635953,3371.7,3371.3,1.6052191]
[1719715707529,2.3983,3371.8,3371.3,1.6052191]
[1719715707728,0.05635953,3371.7,3371.3,1.6052191]
[1719715707955,2.3983,3371.8,3371.3,1.6052191]
[1719715708158,0.05635953,3371.7,3371.3,1.6052191]
[1719715708478,2.3983,3371.8,3371.3,1.6052191]
[1719715708625,0.05633885,3371.6,3371.3,1.6052191]
[1719715708830,0.05637813,3371.7,3371.4,0.46052191]
[1719715709144,2.3983,3371.8,3371.3,1.6052191]
[1719715709324,0.05637813,3371.7,3371.3,1.6052191]
[1719715709544,2.3983,3371.8,3371.3,1.6052191]
[1719715709772,0.05637813,3371.7,3371.3,1.6052191]
[1719715709926,2.3983,3371.8,3371.3,1.6052191]
[1719715710127,0.05637813,3371.7,3371.3,1.6052191]
[1719715710326,2.3983,3371.8,3371.3,1.6052191]
[1719715710567,0.05637813,3371.7,3371.3,1.6052191]
[1719715710737,2.3983,3371.8,3371.4,0.46052191]
[1719715710944,0.05637813,3371.7,3371.4,0.46052191]
[1719715711266,2.3983,3371.8,3371.4,0.46052191]
[1719715711424,0.05635745,3371.6,3371.4,0.46052191]
[1719715711622,2.3983,3371.8,3371.4,0.46052191]
[1719715712034,0.05637813,3371.7,3371.4,0.46052191]
[1719715712540,0.05635745,3371.6,3371.3,0.7412191]
[1719715712755,2.3983,3371.8,3371.2,0.864]
[1719715712969,0.05637813,3371.7,3371.2,0.864]
[1719715718650,2.4199,3371.6,3371.1,3.0]
[1719715718871,2.4199,3371.6,3371.0,2.052291]
[1719715719096,0.05637751,3371.5,3371.2,3.0]
[1719715719238,2.4199,3371.5,3370.5,0.864]
[1719715719441,2.4199,3371.3,3370.5,1.188467]
[1719715719751,0.05431639,3371.2,3370.4,0.864]
[1719715719952,2.4961,3371.1,3370.4,0.864]
[1719715720155,0.303885,3371.0,3370.0,2.318]
[1719715720451,2.4961,3370.9,3370.2,2.052535]
[1719715720638,2.4961,3370.9,3370.2,0.864]
[1719715720978,0.05423362,3370.8,3370.2,0.864]
[1719715722491,0.05423362,3370.8,3370.4,0.864]
[1719715724179,0.05423362,3370.8,3370.1,1.188606]
[1719715724180,0.05423362,3370.8,3370.6,0.864]
[1719715729279,0.05423362,3370.8,3370.1,1.188606]
[1719715729441,0.05423362,3370.8,3370.4,0.864]
[1719715729786,2.4961,3370.7,3370.2,0.864]
[1719715729990,0.0540921,3370.6,3370.2,0.864]
[1719715730857,0.0540921,3370.6,3370.4,0.864]
[1719715731174,2.4961,3370.7,3370.4,0.864]
[1719715731339,0.0540921,3370.6,3370.4,0.864]
[1719715731669,2.4961,3370.7,3370.4,0.864]
[1719715731980,0.0540921,3370.6,3370.4,0.864]
[1719715732170,2.4961,3370.7,3370.4,0.864]
[1719715732379,0.0540921,3370.6,3370.4,0.864]
[1719715732555,2.4961,3370.7,3370.4,0.864]
[1719715732763,0.0540921,3370.6,3370.4,0.864]
[1719715733057,2.4961,3370.7,3370.4,0.864]
[1719715733256,2.4961,3370.7,3370.1,1.188636]
[1719715733453,0.0540921,3370.6,3370.2,0.864]
[1719715733980,2.4961,3370.7,3370.2,0.864]
[1719715734140,0.05412181,3370.6,3370.2,0.864]
[1719715734341,2.4961,3370.7,3370.2,0.864]
[1719715734544,0.05412181,3370.6,3370.2,0.864]
[1719715734746,2.4961,3370.7,3370.2,0.864]
[1719715734974,0.05412181,3370.6,3370.2,0.864]
[1719715735169,2.4961,3370.7,3370.2,0.864]
[1719715735362,0.05412181,3370.6,3370.2,0.864]
[1719715735572,2.4961,3370.7,3370.2,0.864]
[1719715735884,0.05412181,3370.6,3370.2,0.864]
[1719715736084,0.05412181,3370.6,3370.1,0.4188636]
[1719715736988,0.05412181,3370.6,3370.1,1.6074986]
[1719715737166,0.05412181,3370.6,3370.2,0.24714986]
[1719715741197,0.05412181,3370.6,3370.3,0.60934386]
[1719715741500,3.1651,3371.2,3370.3,3.55]
[1719715741660,0.05408682,3370.5,3370.3,3.55]
[1719715741856,0.05408682,3370.5,3370.4,1.72195485]
[1719715742056,2.3011,3371.2,3370.4,2.27195485]
[1719715742282,0.05408682,3370.5,3370.4,5.27195485]
[1719715742481,2.3011,3371.2,3370.4,5.33128995]
[1719715742687,6.89952784,3371.3,3370.9,0.864]
[1719715742912,0.05416783,3371.1,3370.9,0.864]
[1719715743070,2.3011,3371.4,3370.9,0.864]
[1719715743272,0.05421748,3371.0,3370.9,0.864]
[1719715743465,2.3011,3371.4,3370.9,0.864]
[1719715743715,0.05421748,3371.0,3370.9,0.864]
[1719715743895,2.3011,3371.4,3370.7,0.864]
[1719715744061,0.05421748,3371.0,3370.7,0.864]
[1719715744279,2.3011,3371.4,3370.7,0.864]
[1719715744482,0.05419679,3370.9,3370.6,3.43330005]
[1719715744681,2.3011,3371.4,3370.6,0.43330005]
[1719715744876,2.3011,3371.4,3370.5,0.864]
[1719715745081,0.05432388,3371.3,3370.5,0.864]
[1719715746824,2.3011,3371.2,3370.5,0.864]
[1719715746980,2.67197327,3371.2,3370.5,0.864]
[1719715747325,2.35546327,3371.2,3370.5,0.864]
[1719715747523,2.35546327,3371.2,3370.1,4.188635]
[1719715747675,2.3011,3371.0,3370.2,0.55]
[1719715748121,0.05420577,3370.9,3370.3,0.864]
[1719715748319,0.05420577,3370.9,3370.4,0.5602635]
[1719715751226,0.05420577,3370.9,3370.4,0.5302635]
[1719715751526,0.20220577,3370.9,3370.4,0.5302635]
[1719715752722,0.20220577,3370.9,3370.5,0.864]
[1719715754514,0.20220577,3370.9,3370.5,1.58451635]
[1719715755180,0.20220577,3370.9,3370.5,0.72051635]
[1719715755494,0.20220577,3370.9,3370.4,1.3442635]
[1719715755495,2.3011,3370.8,3370.4,1.3442635]
[1719715755702,2.3011,3370.8,3370.3,3.0]
[1719715755914,0.05407651,3370.7,3370.1,1.188635]
[1719715756086,0.05407651,3370.7,3369.6,2.3109]
[1719715756285,0.05407651,3370.7,3369.8,0.864]
[1719715756481,0.39079416,3370.7,3369.9,1.188667]
[1719715757187,0.39079416,3370.7,3370.0,0.55]
[1719715758120,0.39079416,3370.7,3370.0,3.55]
[1719715758679,0.39079416,3370.7,3370.0,3.0]
[1719715758880,0.39079416,3370.7,3369.9,2.052667]
[1719715759081,0.39079416,3370.7,3370.0,0.55]
[1719715759330,0.39079416,3370.7,3370.0,3.55]
[1719715760127,0.05407651,3370.7,3370.1,0.864]
[1719715760485,0.05407651,3370.7,3370.0,3.55]
[1719715760786,0.05407651,3370.7,3370.1,0.864]
[1719715763229,2.4648,3370.6,3370.1,0.864]
[1719715763729,0.05397135,3370.5,3370.1,0.864]
[1719715764726,0.05397135,3370.5,3370.0,3.0]
[1719715764727,2.4648,3370.4,3370.0,3.0]
[1719715765043,2.4648,3370.4,3368.6,4.15597]
[1719715765044,2.4648,3370.1,3369.4,1.18888]
[1719715765326,2.4648,3370.1,3369.2,0.864]
[1719715765576,0.39216511,3370.0,3369.2,0.864]
[1719715765699,0.39216511,3370.0,3369.2,2.052895]
[1719715766443,0.39216511,3370.0,3367.9,1.24677948]
[1719715766444,3.88,3367.0,3366.9,0.25705315]
[1719715766638,2.4648,3367.1,3366.8,1.55831083]
[1719715766844,2.4648,3367.1,3365.5,3.31432791]
[1719715766845,0.56788325,3367.0,3366.7,0.864]
[1719715766990,0.56788325,3367.0,3366.9,0.864]
[1719715767190,0.5679363,3367.0,3365.4,0.28014452]
[1719715767530,0.864,3367.5,3365.4,0.30603688]
[1719715767691,0.864,3367.5,3366.4,0.764]
[1719715768040,1.43151514,3367.4,3366.4,0.864]
[1719715768347,2.1613385,3367.3,3365.5,0.00087405]
[1719715768489,2.1613385,3367.3,3366.5,0.864]
[1719715768828,0.27209556,3367.2,3366.8,0.864]
[1719715769039,0.05067306,3367.2,3366.8,0.864]
[1719715769241,0.05067306,3367.2,3365.8,1.07646239]
[1719715769392,0.24648,3367.7,3365.9,2.079]
[1719715769596,2.48303213,3367.6,3366.0,0.97646239]
[1719715769916,2.16129739,3367.5,3366.0,0.97646239]
[1719715770419,0.05056528,3367.4,3366.0,0.97646239]
[1719715770632,0.05056528,3367.4,3365.9,2.079]
[1719715771023,2.16135228,3367.3,3366.0,0.55]
[1719715771353,0.05056528,3367.4,3366.1,0.2629]
[1719715771661,0.05053224,3367.3,3366.3,2.079]
[1719715772004,0.271128,3367.6,3366.4,0.65097572]
[1719715772319,0.271128,3367.6,3366.5,0.27893824]
[1719715772509,0.271128,3367.6,3366.4,3.65097572]
[1719715772712,0.271128,3367.6,3366.5,0.55]
[1719715773018,0.05059528,3367.5,3366.6,0.65097572]
[1719715775050,0.19859528,3367.5,3366.6,0.65097572]
[1719715775208,1.18200039,3367.5,3366.6,0.65097572]
[1719715777858,1.18200039,3367.5,3366.1,0.65097572]
[1719715779384,1.18200039,3367.5,3366.1,2.72997572]
[1719715779530,0.83526562,3367.4,3366.2,3.27299757]
[1719715779731,0.83526562,3367.4,3366.3,0.65097572]
[1719715779926,0.83526562,3367.4,3366.2,3.27299757]
[1719715779927,0.05049592,3367.3,3366.2,3.27299757]
[1719715780165,0.05049592,3367.3,3366.2,0.27299757]
[1719715780966,0.05049592,3367.3,3366.1,2.079]
[1719715781642,0.05049592,3367.3,3366.1,2.46467594]
[1719715782490,0.05049592,3367.3,3366.1,2.079]
[1719715783323,6.95002376,3367.3,3366.1,2.079]
[1719715783853,6.95002376,3367.3,3366.2,0.55]
[1719715784066,6.95002376,3367.3,3366.5,2.079]
[1719715786172,6.95002376,3367.3,3366.4,3.0]
[1719715786332,6.95002376,3367.3,3365.8,0.29303192]
[1719715786533,6.95002376,3367.3,3366.1,2.079]
[1719715786739,6.95002376,3367.3,3366.2,0.55]
[1719715787046,0.70980238,3367.2,3366.2,3.55]
[1719715787231,0.05047235,3367.2,3366.2,3.55]
[1719715788468,0.05047235,3367.2,3366.3,3.0]
[1719715788690,0.05047235,3367.2,3366.4,0.55]
[1719715789251,0.05047235,3367.2,3366.3,0.55]
[1719715789548,0.05047235,3367.2,3366.3,1.0579]
[1719715790973,2.4442,3366.6,3364.9,0.1046246]
[1719715791191,0.55,3366.5,3364.9,0.1046246]
[1719715791483,2.76260912,3366.5,3364.9,0.1046246]
[1719715791634,0.60030411,3366.5,3364.9,0.1046246]
[1719715791831,2.54176811,3366.4,3364.9,0.1046246]
[1719715792085,0.05009277,3366.3,3364.9,0.1046246]
[1719715792961,0.05009277,3366.3,3365.0,0.119052]
[1719715793336,2.95906284,3366.2,3364.9,0.1046246]
[1719715793538,2.49220537,3366.2,3365.1,2.079]
[1719715793731,2.49220537,3366.2,3364.9,0.1046246]
[1719715794282,2.4442,3365.8,3365.1,0.119052]
[1719715794467,0.75927385,3365.7,3365.1,0.119052]
[1719715794649,0.51485385,3365.6,3365.1,0.119052]
[1719715794846,0.04784251,3365.5,3364.9,0.1046246]
[1719715795181,0.24442,3365.7,3364.9,0.1046246]
[1719715795335,0.04784251,3365.5,3364.9,0.1046246]
[1719715795541,0.51494592,3365.5,3364.9,0.1046246]
[1719715795778,0.04784251,3365.5,3364.9,0.1046246]
[1719715796332,3.0070711,3365.5,3362.4,1.55241055]
[1719715796456,3.0070711,3365.5,3362.0,0.00247081]
[1719715796457,2.079,3362.5,3362.0,0.00247081]
[1719715796813,1.56143704,3362.4,3362.0,0.00247081]
[1719715796952,0.96654128,3362.3,3362.0,0.00247081]
[1719715797150,0.96654128,3362.3,3361.6,0.3666176]
[1719715797151,0.51539758,3362.2,3361.8,2.66545528]
[1719715797361,2.4442,3361.9,3361.8,2.66545528]
[1719715797572,2.83982115,3361.9,3361.8,2.56545528]
[1719715797803,2.83982115,3361.9,3361.8,2.46545528]
[1719715797804,3.95199288,3361.9,3361.8,2.46545528]
[1719715797952,6.72289838,3361.9,3361.8,2.46545528]
[1719715798159,6.72289838,3361.9,3358.7,0.29548048]
[1719715798160,2.4442,3361.8,3358.7,0.29548048]
[1719715798364,2.4442,3361.8,3358.2,0.1166176]
[1719715798365,2.4769055,3358.7,3358.6,0.15770231]
[1719715798560,0.2975,3361.0,3358.2,0.1166176]
[1719715798561,0.6919055,3359.7,3358.2,0.1166176]
[1719715798801,1.55033947,3361.7,3358.2,0.1166176]
[1719715798802,5.3942,3360.2,3358.2,0.1166176]
[1719715798957,2.95,3360.2,3360.1,0.0580945]
[1719715799158,2.95,3360.2,3359.3,0.0580945]
[1719715799159,0.04427006,3360.1,3359.3,0.0580945]
[1719715799398,0.54384701,3360.1,3358.2,0.1166176]
[1719715799605,1.16016073,3360.0,3359.0,0.0080945]
[1719715799774,0.04431841,3360.0,3359.2,2.7910945]
[1719715799970,0.00522025,3360.0,3359.2,2.7910945]
[1719715800154,0.04108774,3360.0,3359.2,2.783]
[1719715800358,0.7419055,3361.5,3359.3,0.0080945]
[1719715800606,0.03972965,3359.9,3359.3,0.0080945]
[1719715800761,2.4127,3362.0,3359.9,0.0080945]
[1719715801122,0.24127,3361.9,3360.4,2.783]
[1719715801618,0.24127,3361.9,3360.5,3.0]
[1719715801911,0.265397,3361.8,3360.5,3.0]
[1719715802782,0.265397,3361.8,3360.9,2.783]
[1719715802976,0.265397,3361.8,3361.0,3.0]
[1719715803569,0.148,3361.8,3361.4,2.783]
[1719715803815,2.4127,3362.8,3361.5,3.0]
[1719715803966,0.24127,3362.7,3361.9,2.783]
[1719715804181,0.24127,3362.7,3362.0,3.0]
[1719715804369,2.4127,3363.4,3362.0,3.0]
[1719715805785,2.4127,3363.4,3361.7,2.7910945]
[1719715805995,2.4127,3363.4,3361.8,3.0]
[1719715806274,0.24127,3363.3,3361.8,3.0]
[1719715806718,0.04072716,3363.2,3361.8,3.0]
[1719715807228,0.04072716,3363.2,3359.7,4.477]
[1719715807229,0.7419055,3362.7,3360.4,2.7910945]
[1719715807374,0.7419055,3362.7,3360.4,3.07020395]
[1719715807581,0.59068592,3362.6,3360.4,3.07020395]
[1719715807896,0.52,3362.6,3360.4,3.07020395]
[1719715808087,0.04077551,3362.5,3360.4,3.07020395]
[1719715808312,0.04077551,3362.5,3360.4,3.21820395]
[1719715809077,0.04077551,3362.5,3360.9,2.7910945]
[1719715809593,0.7419055,3362.9,3361.0,3.0]
[1719715809792,0.0406096,3362.4,3361.0,3.0]
[1719715810022,0.7419055,3362.9,3361.0,3.0]
[1719715810228,1.31414333,3362.8,3361.0,3.0]
[1719715810519,1.35458989,3362.8,3361.0,3.0]
[1719715810937,1.35458989,3362.8,3361.4,0.0080945]
[1719715810938,0.80458989,3362.8,3361.4,0.0080945]
[1719715811236,0.80458989,3362.8,3361.7,0.0080945]
[1719715811440,0.04044656,3362.8,3361.7,0.0080945]